[Event "71st RUS-ch Higher League 2018"]
[Site "Yaroslavl"]
[Date "2018.06.29"]
[Round "4"]
[White "Gordievsky, Dmitry"]
[Black "Sychev, Klementy"]
[Result "1/2-1/2"]
[ECO "A48"]
[WhiteElo "2641"]
[BlackElo "2527"]
[Annotator "ChessBase"]
[PlyCount "83"]
[EventDate "2018.06.26"]
[EventType "swiss"]
[EventCountry "RUS"]
[SourceTitle "playchess.com"]
[Source "ChessBase"]
[SourceQuality "1"]
[TimeControl "40/5400+30:1800+30"]

1. d4 {[%emt 0:00:00]} Nf6 {[%emt 0:01:39]} 2. Nf3 {[%emt 0:01:21]} g6 {[%emt 0:00:12]} 3. Bg5 {[%emt 0:00:36]} Bg7 {[%emt 0:00:08]} 4. Nbd2 {[%emt 0:00:26]} d5 {[%emt 0:00:51]} 5. e3 {[%emt 0:01:31]} O-O {[%emt 0:00:25]} 6. Bd3 {[%emt 0:01:12]} Nbd7 7. h3 {[%emt 0:12:59]} Re8 {[%emt 0:05:53]} 8. Bf4 {[%emt 0:00:51]} Nh5 {[%emt 0:29:28]} 9. Bh2 {[%emt 0:00:27]} e5 {[%emt 0:02:07]} 10. dxe5 {[%emt 0:12:10]} Nxe5 {[%emt 0:00:32]} 11. Nxe5 {[%emt 0:00:32]} Bxe5 {[%emt 0:00:08]} 12. Bxe5 {[%emt 0:00:02]} Rxe5 {[%emt 0:00:10]} 13. Nf3 {[%emt 0:05:09]} Re8 {[%emt 0:01:19]} 14. O-O {[%emt 0:00:06]} Nf6 {[%emt 0:04:49]} 15. c4 {[%emt 0:04:48]} c6 {[%emt 0:10:43]} 16. c5 {[%emt 0:07:46]} Nd7 {[%emt 0:02:08]} 17. Rc1 {[%emt 0:00:45]} Qf6 {[%emt 0:00:48]} 18. Nd4 {[%emt 0:01:46]} Nf8 {[%emt 0:03:46]} 19. Re1 {[%emt 0:13:48]} Ne6 {[%emt 0:02:59]} 20. Bf1 {[%emt 0:00:40]} Bd7 {[%emt 0:03:59]} 21. Qd2 {[%emt 0:01:17]} Re7 {[%emt 0:03:10]} 22. Qb4 {[%emt 0:07:45]} Rae8 {[%emt 0:00:27]} 23. Nxe6 {[%emt 0:04:02]} Bxe6 {[%emt 0:00:12]} 24. Qd4 {[%emt 0:01:43]} Kg7 {[%emt 0:01:46]} 25. Red1 {[%emt 0:02:27]} Bf5 {[%emt 0:01:46]} 26. Rc3 {[%emt 0:01:45]} Re4 {[%emt 0:03:09]} 27. Qxf6+ {[%emt 0:00:02]} Kxf6 {[%emt 0:00:07]} 28. Ra3 {[%emt 0:00:05]} a6 {[%emt 0:02:32]} 29. Rd2 {[%emt 0:01:27]} g5 {[%emt 0:06:05]} 30. Rb3 {[%emt 0:00:03]} R8e7 {[%emt 0:01:03]} 31. g4 {[%emt 0:02:01]} Bg6 {[%emt 0:01:13]} 32. Kg2 {[%emt 0:00:44]} Kg7 {[%emt 0:01:53]} 33. a3 {[%emt 0:00:29]} h5 {[%emt 0:02:23]} 34. Bd3 {[%emt 0:04:16]} Ra4 {[%emt 0:02:55]} 35. Be2 {[%emt 0:00:03]} hxg4 {[%emt 0:00:37]} 36. hxg4 {[%emt 0:00:06]} Rae4 {[%emt 0:00:37]} 37. Kf1 {[%emt 0:03:01]} Kf8 {[%emt 0:02:43]} 38. Rd4 {[%emt 0:00:48]} Ke8 {[%emt 0:01:55]} 39. Rxe4 {[%emt 0:00:25]} Bxe4 {[%emt 0:00:52]} 40. f3 {[%emt 0:00:00]} Bg6 {[%emt 0:00:26]} 41. Kf2 {[%emt 0:03:11]} f6 {[%emt 0:03:25]} 42. Bd3 {[%emt 0:08:26]} 1/2-1/2

[Event "71st RUS-ch Higher League 2018"]
[Site "Yaroslavl"]
[Date "2018.06.29"]
[Round "4"]
[White "Zvjaginsev, Vadim"]
[Black "Turov, Maxim"]
[Result "1-0"]
[ECO "B12"]
[WhiteElo "2633"]
[BlackElo "2600"]
[Annotator "ChessBase"]
[PlyCount "135"]
[EventDate "2018.06.26"]
[EventType "swiss"]
[EventCountry "RUS"]
[SourceTitle "playchess.com"]
[Source "ChessBase"]
[SourceQuality "1"]
[TimeControl "40/5400+30:1800+30"]

1. e4 {[%emt 0:00:00]} c6 {[%emt 0:00:05]} 2. d4 {[%emt 0:00:00]} d5 {[%emt 0:00:09]} 3. e5 {[%emt 0:00:00]} Bf5 {[%emt 0:00:28]} 4. Be3 {[%emt 0:01:37]} e6 {[%emt 0:00:47]} 5. Nd2 {[%emt 0:00:40]} Ne7 {[%emt 0:02:09]} 6. f4 {[%emt 0:00:16]} Nd7 {[%emt 0:03:33]} 7. Ngf3 {[%emt 0:00:45]} Qb6 {[%emt 0:02:07]} 8. Nb3 {[%emt 0:01:37]} a5 {[%emt 0:00:11]} 9. a4 {[%emt 0:00:26]} f6 {[%emt 0:17:33]} 10. Be2 {[%emt 0:04:38]} Ng6 {[%emt 0:00:29]} 11. O-O {[%emt 0:04:05]} Be7 {[%emt 0:13:16]} 12. c4 {[%emt 0:16:47]} fxe5 {[%emt 0:08:36]} 13. c5 {[%emt 0:00:50]} Qa7 {[%emt 0:02:34]} 14. dxe5 {[%emt 0:00:39]} Nxc5 {[%emt 0:06:56]} 15. Rc1 {[%emt 0:02:47]} b6 {[%emt 0:07:09]} 16. Nfd4 {[%emt 0:09:45]} Qb7 {[%emt 0:05:57]} 17. Nxc6 {[%emt 0:04:10]} O-O {[%emt 0:00:50]} 18. Nxe7+ {[%emt 0:01:21]} Nxe7 {[%emt 0:00:06]} 19. Nxc5 {[%emt 0:00:33]} bxc5 {[%emt 0:00:07]} 20. Bxc5 {[%emt 0:00:15]} Rfc8 {[%emt 0:00:20]} 21. Qd2 {[%emt 0:04:59]} Be4 {[%emt 0:01:11]} 22. Rfe1 {[%emt 0:13:13]} Nf5 {[%emt 0:02:01]} 23. Bf2 {[%emt 0:01:00]} Rcb8 {[%emt 0:04:14]} 24. Rc5 {[%emt 0:04:22]} Qb4 {[%emt 0:04:45]} 25. Qxb4 {[%emt 0:00:58]} Rxb4 {[%emt 0:00:04]} 26. g4 {[%emt 0:02:18]} Ne7 {[%emt 0:05:31]} 27. Rb5 {[%emt 0:05:58]} Rxa4 {[%emt 0:00:23]} 28. Rc1 {[%emt 0:00:49]} Ng6 {[%emt 0:01:43]} 29. Bg3 {[%emt 0:01:19]} Rf8 {[%emt 0:01:02]} 30. f5 {[%emt 0:03:09]} exf5 {[%emt 0:00:31]} 31. gxf5 {[%emt 0:00:15]} Ne7 {[%emt 0:04:43]} 32. f6 {[%emt 0:00:15]} gxf6 {[%emt 0:01:20]} 33. e6 {[%emt 0:00:45]} Nf5 {[%emt 0:01:54]} 34. Bf2 {[%emt 0:05:14]} Re8 {[%emt 0:01:37]} 35. Rb6 {[%emt 0:02:33]} Rb4 {[%emt 0:02:16]} 36. Bb5 {[%emt 0:00:46]} d4 {[%emt 0:01:05]} 37. Re1 {[%emt 0:01:18]} Ne3 {[%emt 0:00:37]} 38. Bxe8 {[%emt 0:05:37]} Rxb6 {[%emt 0:00:04]} 39. Bd7 {[%emt 0:00:19]} Kf8 {[%emt 0:00:45]} 40. Bxe3 {[%emt 0:00:00]} dxe3 {[%emt 0:00:10]} 41. Rxe3 {[%emt 0:00:29]} f5 {[%emt 0:04:24]} 42. e7+ {[%emt 0:00:17]} Kxe7 {[%emt 0:00:04]} 43. Bxf5 {[%emt 0:00:09]} Rxb2 {[%emt 0:00:04]} 44. Bxe4 {[%emt 0:05:17]} a4 {[%emt 0:00:08]} 45. Bc2+ {[%emt 0:01:25]} Kf6 {[%emt 0:00:05]} 46. Bxa4 {[%emt 0:00:09]} h5 {[%emt 0:00:03]} 47. Bd1 {[%emt 0:01:26]} h4 {[%emt 0:00:10]} 48. Be2 {[%emt 0:00:41]} Rb4 {[%emt 0:00:06]} 49. Kg2 {[%emt 0:00:31]} Rd4 {[%emt 0:00:05]} 50. Kh3 {[%emt 0:00:32]} Rb4 {[%emt 0:00:19]} 51. Bg4 {[%emt 0:01:52]} Rb2 {[%emt 0:00:05]} 52. Re4 {[%emt 0:00:49]} Kg5 {[%emt 0:00:05]} 53. Re5+ {[%emt 0:00:20]} Kg6 {[%emt 0:00:05]} 54. Rh5 {[%emt 0:03:26]} Kg7 {[%emt 0:00:39]} 55. Rxh4 {[%emt 0:02:18]} Rb8 {[%emt 0:00:05]} 56. Kg3 {[%emt 0:00:39]} Rh8 {[%emt 0:00:05]} 57. Bh5 {[%emt 0:00:05]} Rb8 {[%emt 0:00:02]} 58. Bf3 {[%emt 0:00:28]} Rb6 {[%emt 0:00:04]} 59. Be4 {[%emt 0:00:11]} Rd6 {[%emt 0:00:09]} 60. Rh7+ {[%emt 0:01:15]} Kg8 {[%emt 0:00:06]} 61. Ra7 {[%emt 0:00:45]} Rb6 {[%emt 0:00:04]} 62. h3 {[%emt 0:00:18]} Kh8 {[%emt 0:00:07]} 63. Kf4 {[%emt 0:00:38]} Kg8 {[%emt 0:00:03]} 64. Kg5 {[%emt 0:00:26]} Rd6 {[%emt 0:01:05]} 65. Bh7+ {[%emt 0:00:55]} Kh8 {[%emt 0:00:10]} 66. Bg6 {[%emt 0:00:16]} Rd8 {[%emt 0:00:04]} 67. Kh6 {[%emt 0:00:50]} Rf8 {[%emt 0:00:08]} 68. Bf7 {[%emt 0:00:44]} 1-0

[Event "71st RUS-ch Higher League 2018"]
[Site "Yaroslavl"]
[Date "2018.06.29"]
[Round "4"]
[White "Romanov, Evgeny"]
[Black "Yanchenko, Roman"]
[Result "1/2-1/2"]
[ECO "A13"]
[WhiteElo "2628"]
[BlackElo "2462"]
[Annotator "ChessBase"]
[PlyCount "85"]
[EventDate "2018.06.26"]
[EventType "swiss"]
[EventCountry "RUS"]
[SourceTitle "playchess.com"]
[Source "ChessBase"]
[SourceQuality "1"]
[TimeControl "40/5400+30:1800+30"]

1. c4 {[%emt 0:00:35]} e6 {[%emt 0:02:46]} 2. g3 {[%emt 0:00:22]} d5 {[%emt 0:00:17]} 3. Bg2 {[%emt 0:00:08]} Nf6 {[%emt 0:00:12]} 4. d4 {[%emt 0:05:15]} Bb4+ {[%emt 0:00:55]} 5. Nd2 {[%emt 0:00:08]} c5 {[%emt 0:02:08]} 6. a3 {[%emt 0:16:26]} Bxd2+ {[%emt 0:02:01]} 7. Qxd2 {[%emt 0:00:06]} cxd4 {[%emt 0:02:24]} 8. cxd5 {[%emt 0:00:52]} O-O {[%emt 0:04:51]} 9. Nf3 {[%emt 0:15:03]} Qxd5 {[%emt 0:01:02]} 10. Qxd4 {[%emt 0:00:24]} Nc6 {[%emt 0:01:11]} 11. Qxd5 {[%emt 0:00:23]} Nxd5 {[%emt 0:00:23]} 12. b4 {[%emt 0:03:26]} b6 {[%emt 0:03:21]} 13. Bd2 {[%emt 0:13:45]} Ba6 {[%emt 0:01:50]} 14. Rb1 {[%emt 0:02:03]} Bb5 {[%emt 0:03:17]} 15. a4 {[%emt 0:08:33]} Bxa4 {[%emt 0:00:16]} 16. b5 {[%emt 0:00:06]} Na5 {[%emt 0:01:50]} 17. Nd4 {[%emt 0:01:41]} Rac8 {[%emt 0:07:03]} 18. Bxd5 {[%emt 0:10:31]} exd5 {[%emt 0:00:03]} 19. Bxa5 {[%emt 0:02:31]} bxa5 {[%emt 0:00:04]} 20. Kd2 {[%emt 0:01:01]} Rc4 {[%emt 0:03:03]} 21. e3 {[%emt 0:02:42]} Rfc8 {[%emt 0:02:40]} 22. Rb2 {[%emt 0:04:10]} g6 {[%emt 0:03:37]} 23. Ra1 {[%emt 0:02:13]} Rb8 {[%emt 0:03:57]} 24. Kd3 {[%emt 0:03:15]} f5 {[%emt 0:04:16]} 25. f3 {[%emt 0:03:39]} Rb6 {[%emt 0:23:03]} 26. e4 {[%emt 0:00:07]} fxe4+ {[%emt 0:00:17]} 27. fxe4 {[%emt 0:00:01]} a6 {[%emt 0:00:45]} 28. exd5 {[%emt 0:00:03]} axb5 {[%emt 0:00:13]} 29. Nxb5 {[%emt 0:00:17]} Rxb5 {[%emt 0:14:41]} 30. Kxc4 {[%emt 0:00:05]} Rxb2 {[%emt 0:00:02]} 31. Rxa4 {[%emt 0:00:09]} Rxh2 {[%emt 0:00:02]} 32. Rxa5 {[%emt 0:00:06]} Kf7 {[%emt 0:00:04]} 33. Kc5 {[%emt 0:00:59]} Rg2 {[%emt 0:01:34]} 34. Ra3 {[%emt 0:02:02]} Ke7 {[%emt 0:00:08]} 35. d6+ {[%emt 0:01:05]} Kd7 {[%emt 0:00:03]} 36. Ra7+ {[%emt 0:00:13]} Kd8 {[%emt 0:00:01]} 37. Ra8+ {[%emt 0:00:34]} Kd7 {[%emt 0:00:02]} 38. Ra7+ {[%emt 0:00:14]} Kd8 {[%emt 0:00:01]} 39. Kc6 {[%emt 0:00:32]} Rc2+ {[%emt 0:00:03]} 40. Kd5 {[%emt 0:00:00]} Rg2 {[%emt 0:00:22]} 41. Ke6 {[%emt 0:02:53]} Re2+ {[%emt 0:00:03]} 42. Kf6 {[%emt 0:02:29]} Rg2 {[%emt 0:00:06]} 43. Ke6 {[%emt 0:04:42]} 1/2-1/2

[Event "71st RUS-ch Higher League 2018"]
[Site "Yaroslavl"]
[Date "2018.06.29"]
[Round "4"]
[White "Alekseev, Evgeny"]
[Black "Shaposhnikov, Evgeny"]
[Result "1/2-1/2"]
[ECO "C00"]
[WhiteElo "2627"]
[BlackElo "2572"]
[Annotator "ChessBase"]
[PlyCount "81"]
[EventDate "2018.06.26"]
[EventType "swiss"]
[EventCountry "RUS"]
[SourceTitle "playchess.com"]
[Source "ChessBase"]
[SourceQuality "1"]
[TimeControl "40/5400+30:1800+30"]

1. e4 {[%emt 0:04:05]} e6 {[%emt 0:00:19]} 2. d4 {[%emt 0:01:35]} d5 {[%emt 0:00:05]} 3. Bd3 {[%emt 0:04:04]} Nc6 {[%emt 0:03:48]} 4. Ne2 {[%emt 0:16:20]} Nb4 {[%emt 0:03:19]} 5. Bb5+ {[%emt 0:07:25]} Bd7 {[%emt 0:06:52]} 6. Bxd7+ {[%emt 0:01:07]} Qxd7 {[%emt 0:00:02]} 7. c3 {[%emt 0:02:23]} Nc6 {[%emt 0:00:43]} 8. e5 {[%emt 0:01:12]} f6 {[%emt 0:00:27]} 9. f4 {[%emt 0:01:46]} Nh6 {[%emt 0:01:51]} 10. Ng3 {[%emt 0:08:04]} f5 {[%emt 0:06:53]} 11. Nd2 {[%emt 0:03:33]} Nf7 {[%emt 0:01:26]} 12. O-O {[%emt 0:02:43]} Be7 {[%emt 0:01:18]} 13. Nf3 {[%emt 0:02:46]} Na5 {[%emt 0:09:02]} 14. Qe2 {[%emt 0:04:17]} g6 {[%emt 0:02:09]} 15. Be3 {[%emt 0:07:34]} h5 {[%emt 0:04:17]} 16. Nd2 {[%emt 0:02:38]} h4 {[%emt 0:01:15]} 17. Nh1 {[%emt 0:00:04]} g5 {[%emt 0:00:48]} 18. b4 {[%emt 0:01:14]} gxf4 {[%emt 0:04:34]} 19. Bxf4 {[%emt 0:00:42]} Nc6 {[%emt 0:01:55]} 20. Nb3 {[%emt 0:04:36]} b6 {[%emt 0:05:56]} 21. b5 {[%emt 0:03:21]} Ncd8 {[%emt 0:00:47]} 22. Nf2 {[%emt 0:02:29]} Ng5 {[%emt 0:15:12]} 23. Bxg5 {[%emt 0:04:17]} Bxg5 {[%emt 0:00:31]} 24. Nh3 {[%emt 0:00:02]} Nf7 {[%emt 0:00:23]} 25. a4 {[%emt 0:01:52]} Bh6 {[%emt 0:06:10]} 26. Nc1 {[%emt 0:05:45]} c5 {[%emt 0:08:46]} 27. Nd3 {[%emt 0:02:19]} c4 {[%emt 0:03:16]} 28. Nb4 {[%emt 0:01:07]} Ng5 {[%emt 0:01:48]} 29. Nxg5 {[%emt 0:02:43]} Bxg5 {[%emt 0:00:02]} 30. a5 {[%emt 0:00:22]} Bd8 {[%emt 0:03:41]} 31. Nc6 {[%emt 0:01:16]} bxa5 {[%emt 0:00:24]} 32. Nxd8 {[%emt 0:01:17]} Qxd8 {[%emt 0:00:02]} 33. Qa2 {[%emt 0:00:32]} Qg5 {[%emt 0:02:20]} 34. Qxa5 {[%emt 0:00:54]} O-O 35. Kh1 {[%emt 0:00:27]} Kh8 {[%emt 0:05:26]} 36. Rf3 {[%emt 0:00:27]} Rg8 {[%emt 0:00:25]} 37. Rg1 {[%emt 0:00:05]} Rg7 {[%emt 0:00:11]} 38. Rh3 {[%emt 0:00:46]} Rag8 {[%emt 0:00:09]} 39. Qa1 {[%emt 0:00:48]} Qg4 {[%emt 0:00:21]} 40. Rf3 {[%emt 0:00:00]} Qh5 {[%emt 0:02:54]} 41. Rf4 {[%emt 0:06:28]} 1/2-1/2

[Event "71st RUS-ch Higher League 2018"]
[Site "Yaroslavl"]
[Date "2018.06.29"]
[Round "4"]
[White "Ponkratov, Pavel"]
[Black "Goryachkina, Aleksandra"]
[Result "1/2-1/2"]
[ECO "C11"]
[WhiteElo "2622"]
[BlackElo "2505"]
[Annotator "ChessBase"]
[PlyCount "82"]
[EventDate "2018.06.26"]
[EventType "swiss"]
[EventCountry "RUS"]
[SourceTitle "playchess.com"]
[Source "ChessBase"]
[SourceQuality "1"]
[TimeControl "40/5400+30:1800+30"]

1. e4 {[%emt 0:00:00]} e6 {[%emt 0:00:11]} 2. d4 {[%emt 0:00:04]} d5 {[%emt 0:00:06]} 3. Nc3 {[%emt 0:00:03]} Nf6 {[%emt 0:00:15]} 4. Bg5 {[%emt 0:00:05]} dxe4 {[%emt 0:00:43]} 5. Nxe4 {[%emt 0:00:05]} Be7 {[%emt 0:00:07]} 6. Bxf6 {[%emt 0:00:05]} gxf6 {[%emt 0:00:12]} 7. Qd2 {[%emt 0:00:47]} b6 {[%emt 0:02:55]} 8. O-O-O {[%emt 0:05:53]} Bb7 {[%emt 0:00:36]} 9. Nc3 {[%emt 0:00:04]} c6 {[%emt 0:00:20]} 10. f4 {[%emt 0:06:52]} f5 {[%emt 0:05:51]} 11. Nf3 {[%emt 0:00:23]} Nd7 {[%emt 0:01:19]} 12. Bd3 {[%emt 0:01:11]} Qc7 {[%emt 0:04:32]} 13. Rhe1 {[%emt 0:02:07]} O-O-O {[%emt 0:04:23]} 14. g3 {[%emt 0:03:10]} Bf6 {[%emt 0:02:15]} 15. Qe2 {[%emt 0:09:30]} Kb8 {[%emt 0:02:48]} 16. Ba6 {[%emt 0:02:35]} b5 {[%emt 0:06:04]} 17. Bxb7 {[%emt 0:02:38]} Qxb7 {[%emt 0:01:08]} 18. Ne5 {[%emt 0:04:36]} Bxe5 {[%emt 0:09:51]} 19. dxe5 {[%emt 0:01:04]} Nb6 {[%emt 0:02:19]} 20. Rxd8+ {[%emt 0:05:44]} Rxd8 {[%emt 0:00:07]} 21. Qh5 {[%emt 0:25:18]} b4 {[%emt 0:01:57]} 22. Nb1 {[%emt 0:00:06]} c5 {[%emt 0:05:07]} 23. Qe2 {[%emt 0:09:10]} c4 {[%emt 0:06:13]} 24. a3 {[%emt 0:02:20]} a5 {[%emt 0:04:37]} 25. c3 Rd3 26. axb4 {[%emt 0:09:04]} axb4 {[%emt 0:04:28]} 27. Rd1 {[%emt 0:00:00]} Rxd1+ {[%emt 0:13:54]} 28. Qxd1 {[%emt 0:00:47]} b3 29. Qd6+ Qc7 {[%emt 0:05:30]} 30. Qf8+ {[%emt 0:01:36]} Kb7 31. Nd2 {[%emt 0:02:44]} Qd7 {[%emt 0:06:27]} 32. Kd1 {[%emt 0:03:21]} Ka6 {[%emt 0:06:54]} 33. Ke1 {[%emt 0:02:02]} Qd3 34. Qc5 Kb7 {[%emt 0:01:22]} 35. Qe7+ {[%emt 0:00:55]} Kc6 {[%emt 0:01:13]} 36. Qxf7 Qe3+ 37. Kd1 {[%emt 0:00:50]} Qg1+ {[%emt 0:01:09]} 38. Ke2 {[%emt 0:00:03]} Qxh2+ {[%emt 0:00:36]} 39. Kd1 {[%emt 0:00:05]} Qg1+ {[%emt 0:01:32]} 40. Ke2 {[%emt 0:00:00]} Qg2+ {[%emt 0:00:20]} 41. Kd1 Qh1+ {[%emt 0:06:26]} 1/2-1/2

[Event "71st RUS-ch Higher League 2018"]
[Site "Yaroslavl"]
[Date "2018.06.29"]
[Round "4"]
[White "Antipov, Mikhail Al"]
[Black "Ovetchkin, Roman"]
[Result "0-1"]
[ECO "C20"]
[WhiteElo "2616"]
[BlackElo "2546"]
[Annotator "ChessBase"]
[PlyCount "44"]
[EventDate "2018.06.26"]
[EventType "swiss"]
[EventCountry "RUS"]
[SourceTitle "playchess.com"]
[Source "ChessBase"]
[SourceQuality "1"]
[TimeControl "40/5400+30:1800+30"]

1. e4 {[%emt 0:00:00]} e5 {[%emt 0:00:12]} 2. c4 {[%emt 0:00:00]} Nc6 {[%emt 0:01:41]} 3. Nc3 {[%emt 0:00:02]} Bc5 {[%emt 0:00:19]} 4. Nf3 {[%emt 0:01:16]} d6 {[%emt 0:00:11]} 5. d3 Nge7 6. a3 {[%emt 0:11:36]} a6 {[%emt 0:14:29]} 7. b4 {[%emt 0:01:45]} Ba7 {[%emt 0:02:02]} 8. h3 {[%emt 0:05:49]} f5 {[%emt 0:08:05]} 9. Be3 {[%emt 0:01:56]} Bxe3 {[%emt 0:09:45]} 10. fxe3 {[%emt 0:00:05]} O-O {[%emt 0:00:09]} 11. Qd2 {[%emt 0:07:17]} Ng6 {[%emt 0:07:05]} 12. Be2 {[%emt 0:10:05]} f4 {[%emt 0:01:56]} 13. g3 {[%emt 0:30:47]} fxg3 {[%emt 0:07:44]} 14. Rg1 {[%emt 0:00:04]} Rxf3 {[%emt 0:19:23]} 15. Bxf3 {[%emt 0:00:04]} Qg5 {[%emt 0:00:06]} 16. Bg4 {[%emt 0:07:56]} Bxg4 {[%emt 0:06:56]} 17. hxg4 {[%emt 0:00:10]} Rf8 {[%emt 0:00:40]} 18. Rxg3 {[%emt 0:01:20]} Nd4 {[%emt 0:01:13]} 19. exd4 {[%emt 0:05:17]} Rf1+ {[%emt 0:00:16]} 20. Kxf1 {[%emt 0:00:04]} Qxd2 {[%emt 0:00:05]} 21. Ne2 {[%emt 0:00:21]} exd4 {[%emt 0:00:20]} 22. c5 {[%emt 0:00:38]} dxc5 {[%emt 0:02:32]} 0-1

[Event "71st RUS-ch Higher League 2018"]
[Site "Yaroslavl"]
[Date "2018.06.29"]
[Round "4"]
[White "Kobalia, Mikhail"]
[Black "Goganov, Aleksey"]
[Result "1/2-1/2"]
[ECO "A08"]
[WhiteElo "2608"]
[BlackElo "2576"]
[Annotator "ChessBase"]
[PlyCount "49"]
[EventDate "2018.06.26"]
[EventType "swiss"]
[EventCountry "RUS"]
[SourceTitle "playchess.com"]
[Source "ChessBase"]
[SourceQuality "1"]
[TimeControl "40/5400+30:1800+30"]

1. e4 {[%emt 0:00:00]} c5 {[%emt 0:00:04]} 2. Nf3 {[%emt 0:00:00]} e6 {[%emt 0:00:05]} 3. g3 {[%emt 0:03:46]} Nc6 {[%emt 0:00:06]} 4. Bg2 {[%emt 0:00:03]} Nf6 {[%emt 0:00:17]} 5. d3 {[%emt 0:00:02]} d5 {[%emt 0:00:14]} 6. Nbd2 {[%emt 0:00:03]} Be7 {[%emt 0:00:17]} 7. O-O {[%emt 0:00:11]} O-O {[%emt 0:00:08]} 8. Re1 {[%emt 0:00:04]} b5 {[%emt 0:00:07]} 9. a4 {[%emt 0:00:14]} b4 {[%emt 0:00:05]} 10. exd5 {[%emt 0:00:12]} Nxd5 {[%emt 0:00:06]} 11. Nc4 {[%emt 0:01:19]} Qc7 {[%emt 0:00:11]} 12. Bg5 {[%emt 0:06:17]} Bb7 {[%emt 0:00:54]} 13. Bxe7 {[%emt 0:01:11]} Ndxe7 {[%emt 0:01:19]} 14. c3 {[%emt 0:07:19]} Rad8 {[%emt 0:04:30]} 15. Qc2 {[%emt 0:00:11]} Ba6 {[%emt 0:08:02]} 16. Nfd2 {[%emt 0:08:45]} bxc3 {[%emt 0:00:58]} 17. bxc3 {[%emt 0:00:35]} Na5 {[%emt 0:04:24]} 18. Rab1 {[%emt 0:03:25]} Nxc4 {[%emt 0:00:52]} 19. Nxc4 {[%emt 0:00:05]} Bxc4 {[%emt 0:00:09]} 20. dxc4 {[%emt 0:00:03]} Nc8 {[%emt 0:06:19]} 21. Rb7 {[%emt 0:02:03]} Qa5 {[%emt 0:01:41]} 22. Rb5 {[%emt 0:00:33]} Qc7 {[%emt 0:00:09]} 23. Rb7 {[%emt 0:00:07]} Qa5 {[%emt 0:00:04]} 24. Rb5 {[%emt 0:00:40]} Qc7 {[%emt 0:00:05]} 25. Rb7 1/2-1/2

[Event "71st RUS-ch Higher League 2018"]
[Site "Yaroslavl"]
[Date "2018.06.29"]
[Round "4"]
[White "Kokarev, Dmitry"]
[Black "Lobanov, Sergei"]
[Result "1/2-1/2"]
[ECO "B19"]
[WhiteElo "2603"]
[BlackElo "2521"]
[Annotator "ChessBase"]
[PlyCount "80"]
[EventDate "2018.06.26"]
[EventType "swiss"]
[EventCountry "RUS"]
[SourceTitle "playchess.com"]
[Source "ChessBase"]
[SourceQuality "1"]
[TimeControl "40/5400+30:1800+30"]

1. e4 {[%emt 0:00:00]} c6 {[%emt 0:00:05]} 2. d4 {[%emt 0:00:00]} d5 {[%emt 0:00:04]} 3. Nd2 {[%emt 0:00:00]} dxe4 {[%emt 0:00:05]} 4. Nxe4 {[%emt 0:00:00]} Bf5 {[%emt 0:00:05]} 5. Ng3 {[%emt 0:00:22]} Bg6 {[%emt 0:00:08]} 6. h4 {[%emt 0:00:10]} h6 {[%emt 0:00:05]} 7. Nf3 {[%emt 0:00:04]} Nd7 {[%emt 0:00:04]} 8. h5 {[%emt 0:00:08]} Bh7 {[%emt 0:00:05]} 9. Bd3 {[%emt 0:00:04]} Bxd3 {[%emt 0:00:05]} 10. Qxd3 {[%emt 0:00:06]} e6 {[%emt 0:00:06]} 11. Bd2 {[%emt 0:00:06]} Ngf6 {[%emt 0:00:15]} 12. O-O-O {[%emt 0:00:30]} Be7 {[%emt 0:00:07]} 13. Ne4 {[%emt 0:00:07]} O-O {[%emt 0:01:57]} 14. Nxf6+ {[%emt 0:00:23]} Nxf6 {[%emt 0:00:24]} 15. Kb1 {[%emt 0:00:14]} c5 {[%emt 0:02:01]} 16. g4 {[%emt 0:00:11]} Nxg4 {[%emt 0:09:55]} 17. Qe2 {[%emt 0:00:10]} cxd4 {[%emt 0:13:14]} 18. Rhg1 {[%emt 0:00:09]} d3 {[%emt 0:04:01]} 19. cxd3 {[%emt 0:00:29]} f5 {[%emt 0:00:52]} 20. Qxe6+ {[%emt 0:00:37]} Kh8 {[%emt 0:01:43]} 21. d4 {[%emt 0:03:24]} Qd6 {[%emt 0:18:38]} 22. Qxd6 {[%emt 0:02:56]} Bxd6 {[%emt 0:00:16]} 23. Nh4 {[%emt 0:00:15]} Kh7 {[%emt 0:16:39]} 24. f3 {[%emt 0:00:38]} Nf2 {[%emt 0:00:46]} 25. Rde1 {[%emt 0:08:04]} Rf7 {[%emt 0:07:15]} 26. Rg2 {[%emt 0:10:06]} Nh3 {[%emt 0:10:40]} 27. Re6 {[%emt 0:34:42]} Bf4 {[%emt 0:01:43]} 28. Ng6 {[%emt 0:07:56]} Bxd2 {[%emt 0:00:14]} 29. Rxd2 {[%emt 0:00:06]} Ng5 {[%emt 0:01:32]} 30. Re3 {[%emt 0:00:09]} f4 {[%emt 0:00:52]} 31. Rc3 {[%emt 0:00:41]} Rf5 {[%emt 0:03:34]} 32. d5 {[%emt 0:13:39]} Rd8 {[%emt 0:00:23]} 33. Ne7 {[%emt 0:07:30]} Re5 {[%emt 0:00:43]} 34. Ng6 {[%emt 0:00:10]} Rf5 {[%emt 0:00:22]} 35. Ne7 {[%emt 0:00:06]} Re5 {[%emt 0:00:04]} 36. Ng6 {[%emt 0:00:06]} Rf5 {[%emt 0:00:28]} 37. Ne7 {[%emt 0:00:11]} Re5 {[%emt 0:00:05]} 38. Ng6 {[%emt 0:00:06]} Rf5 {[%emt 0:00:03]} 39. Ne7 {[%emt 0:00:05]} Re5 {[%emt 0:00:03]} 40. Ng6 {[%emt 0:00:00]} Rf5 {[%emt 0:00:03]} 1/2-1/2